Workbook

Sheet g01收入支出决算总表
A2: 收入支出决算总表
F3: 公开01表
A4: 部门：岳阳县第二中学 | F4: 单位：万元
A5: 收入 | D5: 支出
A6: 项 目 | B6: 行次 | C6: 决算数 | D6: 项 目 | E6: 行次 | F6: 决算数
A7: 栏 次 | C7: 1 | D7: 栏 次 | F7: 2
A8: 一、财政拨款收入 | B8: 1 | C8: 3,678.94 | D8: 一、一般公共服务支出 | E8: 14
A9: 二、上级补助收入 | B9: 2 | D9: 二、外交支出 | E9: 15
A10: 三、事业收入 | B10: 3 | C10: 493.12 | D10: 三、国防支出 | E10: 16
A11: 四、经营收入 | B11: 4 | D11: 四、公共安全支出 | E11: 17
A12: 五、附属单位上缴收入 | B12: 5 | D12: 五、教育支出 | E12: 18 | F12: =C16 -> 4,426.32
A13: 六、其他收入 | B13: 6 | C13: 254.26 | D13: 六、科学技术支出 | E13: 19
B14: 7 | D14: …… | E14: 20
B15: 8 | E15: 21
A16: 本年收入合计 | B16: 9 | C16: =SUM(C8:C13) -> 4,426.32 | D16: 本年支出合计 | E16: 22 | F16: =F12 -> 4,426.32
A17: 用事业基金弥补收支差额 | B17: 10 | D17: 结余分配 | E17: 23
A18: 年初结转和结余 | B18: 11 | D18: 年末结转和结余 | E18: 24
B19: 12 | E19: 25
A20: 总计 | B20: 13 | C20: =C16 -> 4,426.32 | D20: 总计 | E20: 26 | F20: =F16 -> 4,426.32
A21: 注：本表反映部门本年度的总收支和年末结转结余情况。

Sheet g02收入决算表
A1: 收入决算表
J2: 公开02表
A3: 部门： | B3: 岳阳县第二中学 | J3: 单位：万元
A4: 项 目 | D4: 本年收入合计 | E4: 财政拨款收入 | F4: 上级补助收入 | G4: 事业收入 | H4: 经营收入 | I4: 附属单位上缴收入 | J4: 其他收入
A5: 功能分类科目编码 | C5: 科目名称
A7: 栏次 | D7: 1 | E7: 2 | F7: 3 | G7: 4 | H7: 5 | I7: 6 | J7: 7
A8: 合计 | D8: =D9 -> 4,426.32 | E8: =E9 -> 3,678.94 | F8: =F9 -> 0 | G8: 493.12 | H8: 0 | I8: 0 | J8: 254.26
A9: 205 | C9: 教育支出 | D9: =E9+G9+J9 -> 4,426.32 | E9: 3,678.94 | G9: 493.12 | J9: 254.26
A10: 20501 | C10: 教育管理事务 | D10: =E10+G10+J10 -> 0 | E10: =E11+E12+E13+E14 -> 0
A11: 2050101 | C11: 行政运行 | D11: 0
A12: 2050102 | C12: 一般行政管理事务 | D12: 0
A13: 2050103 | C13: 机关服务 | D13: 0
A14: 2050199 | C14: 其他教育管理事务支出 | D14: 0
A15: 20502 | C15: 普通教育 | D15: 4,426.32 | E15: 3,678.94 | G15: =SUM(G16:G19) -> 493.12 | J15: =SUM(J16:J19) -> 254.26
A16: 2050201 | C16: 学前教育 | D16: 0
A17: 2050202 | C17: 小学教育 | D17: 0
A18: 2050203 | C18: 初中教育 | D18: 0
A19: 2050204 | C19: 高中教育 | D19: 4,426.32 | E19: 3,678.94 | G19: 493.12 | J19: 254.26
A20: 20503 | C20: 职业教育 | D20: 0 | G20: =G21 -> 0
A21: 2050302 | C21: 中等职业教育 | D21: 0
A22: 20507 | C22: 特殊教育 | D22: 0 | G22: =G23 -> 0 | J22: =J23 -> 0
A23: 2050701 | C23: 特殊学校教育 | D23: 0
A24: 注：本表反映部门本年度取得的各项收入情况。

Sheet g03支出决算表
A1: 支出决算表
I2: 公开03表
A3: 部门： | B3: 岳阳县第二中学 | I3: 单位：万元
A4: 项 目 | D4: 本年支出合计 | E4: 基本支出 | F4: 项目支出 | G4: 上缴上级支出 | H4: 经营支出 | I4: 对附属单位补助支出
A5: 功能分类科目编码 | C5: 科目名称
A7: 栏次 | D7: 1 | E7: 2 | F7: 3 | G7: 4 | H7: 5 | I7: 6
A8: 合计
A9: 205 | C9: 教育支出
A10: 20501 | C10: 教育管理事务 | D10: =E10+F10 -> 0
A11: 2050101 | C11: 行政运行 | D11: =E11+F11 -> 0
A12: 2050102 | C12: 一般行政管理事务 | D12: 0
A13: 2050103 | C13: 机关服务 | D13: 0
A14: 2050199 | C14: 其他教育管理事务支出 | D14: 0
A15: 20502 | C15: 普通教育 | D15: 0
A16: 2050201 | C16: 学前教育 | D16: 0
A17: 2050202 | C17: 小学教育 | D17: 0
A18: 2050203 | C18: 初中教育 | D18: 0
A19: 2050204 | C19: 高中教育 | D19: 4,426.32 | E19: 4,426.32
A20: 20503 | C20: 职业教育 | D20: 0
A21: 2050302 | C21: 中等职业教育 | D21: 0
A22: 20507 | C22: 特殊教育 | D22: 0
A23: 2050701 | C23: 特殊学校教育 | D23: 0
A24: 注：本表反映部门本年度各项支出情况。

Sheet g04财政拨款收入支出决算总表
A2: 财政拨款收入支出决算总表
H3: 公开04表
A4: 部门：岳阳县第二中学 | H4: 单位：万元
A5: 收入 | D5: 支出
A6: 项 目 | B6: 行次 | C6: 金额 | D6: 项 目 | E6: 行次 | F6: 合计 | G6: 一般公共预算财政拨款 | H6: 政府性基金预算财政拨款
A7: 栏 次 | C7: 1 | D7: 栏 次 | F7: 2 | G7: 3 | H7: 4
A8: 一、一般公共预算财政拨款 | B8: 1 | C8: 3,678.94 | D8: 一、一般公共服务支出 | E8: 15
A9: 二、政府性基金预算财政拨款 | B9: 2 | D9: 二、外交支出 | E9: 16
B10: 3 | D10: 三、国防支出 | E10: 17
B11: 4 | D11: 四、公共安全支出 | E11: 18
B12: 5 | D12: 五、教育支出 | E12: 19 | F12: =G12+H12 -> 3,678.94 | G12: =C8 -> 3,678.94 | H12: =C9 -> 0
B13: 6 | D13: 六、科学技术支出 | E13: 20
B14: 7 | D14: …… | E14: 21
B15: 8 | E15: 22
A16: 本年收入合计 | B16: 9 | C16: =C8+C9 -> 3,678.94 | D16: 本年支出合计 | E16: 23 | F16: =G16+H16 -> 3,678.94 | G16: =G12 -> 3,678.94 | H16: =H12 -> 0
A17: 年初财政拨款结转和结余 | B17: 10 | D17: 年末财政拨款结转和结余 | E17: 24
A18: 一般公共预算财政拨款 | B18: 11 | E18: 25
A19: 政府性基金预算财政拨款 | B19: 12 | E19: 26
B20: 13 | E20: 27
A21: 总计 | B21: 14 | C21: =C16 -> 3,678.94 | D21: 总计 | E21: 28 | F21: =F16 -> 3,678.94 | G21: =G16 -> 3,678.94 | H21: =H16 -> 0
A22: 注：本表反映部门本年度一般公共预算财政拨款和政府性基金预算财政拨款的总收支和年末结转结余情况。

Sheet g05一般公共预算财政拨款支出决算表
A1: 一般公共预算财政拨款支出决算表
F2: 公开05表
A3: 部门： | B3: 岳阳县第二中学 | F3: 单位：万元
A4: 项 目 | D4: 本年支出
A5: 功能分类科目编码 | C5: 科目名称 | D5: 小计 | E5: 基本支出 | F5: 项目支出
A8: 栏次 | D8: 1 | E8: 2 | F8: 3
A9: 合计 | D9: 3,678.94 | E9: 3,678.94
A10: 205 | C10: 教育支出 | D10: =D11+D16+D21+D23 -> 3,678.94 | E10: =E11+E16+E21+E23 -> 3,678.94
A11: 20501 | C11: 教育管理 | D11: =E11+F11 -> 0
A12: 2050101 | C12: 行政运行
A13: 2050102 | C13: 一般行政管理事务
A14: 2050103 | C14: 机关服务
A15: 2050199 | C15: 其他教育管理事务支出
A16: 20502 | C16: 普通教育 | D16: =SUM(D17:D20) -> 3,678.94 | E16: 3,678.94
A17: 2050201 | C17: 学前教育
A18: 2050202 | C18: 小学教育
A19: 2050203 | C19: 初中教育
A20: 2050204 | C20: 高中教育 | D20: 3,678.94 | E20: 3,678.94
A21: 20503 | C21: 职业教育 | D21: =E21+F21 -> 0
A22: 2050302 | C22: 中等职业教育
A23: 20507 | C23: 特殊教育 | D23: 0
A24: 2050701 | C24: 特殊学校教育
A25: 注：本表反映部门本年度一般公共预算财政拨款支出情况。

Sheet g06一般公共预算财政拨款基本支出决算表
A1: 一般公共预算财政拨款基本支出决算表
I2: 公开06表
A3: 部门： | B3: 岳阳县第二中学 | I3: 单位：万元
A4: 人员经费 | D4: 公用经费
A5: 经济分类 科目编码 | B5: 科目名称 | C5: 金额 | D5: 经济分类 科目编码 | E5: 科目名称 | F5: 金额 | G5: 经济分类 科目编码 | H5: 科目名称 | I5: 金额
A7: 301 | B7: 工资福利支出 | C7: =SUM(C8:C16) -> 2,414.81 | D7: 302 | E7: 商品和服务支出 | F7: =SUM(F8:F33) -> 275.80 | G7: 310 | H7: 其他资本性支出 | I7: =SUM(I8:I33) -> 461.00
A8: 30101 | B8: 基本工资 | C8: 1,190.80 | D8: 30201 | E8: 办公费 | F8: 48.80 | G8: 31001 | H8: 房屋建筑物购建 | I8: 426.00
A9: 30102 | B9: 津贴补贴 | C9: 2.44 | D9: 30202 | E9: 印刷费 | G9: 31002 | H9: 办公设备购置
A10: 30103 | B10: 奖金 | C10: 233.95 | D10: 30203 | E10: 咨询费 | G10: 31003 | H10: 专用设备购置
A11: 30104 | B11: 其他社会保障缴费 | C11: 157.27 | D11: 30204 | E11: 手续费 | G11: 31005 | H11: 基础设施建设
A12: 30106 | B12: 伙食补助费 | D12: 30205 | E12: 水费 | F12: 25.00 | G12: 31006 | H12: 大型修缮
A13: 30107 | B13: 绩效工资 | C13: 518.70 | D13: 30206 | E13: 电费 | F13: 40.00 | G13: 31007 | H13: 信息网络及软件购置更新
A14: 30108 | B14: 机关事业单位基本养老保险缴费 | C14: 273.52 | D14: 30207 | E14: 邮电费 | G14: 31008 | H14: 物资储备
A15: 30109 | B15: 职业年金缴费 | C15: 20.38 | D15: 30208 | E15: 取暖费 | G15: 31009 | H15: 土地补偿
A16: 30199 | B16: 其他工资福利支出 | C16: 17.75 | D16: 30209 | E16: 物业管理费 | F16: 32.00 | G16: 31010 | H16: 安置补助
A17: 303 | B17: 对个人和家庭的补助 | C17: =SUM(C18:C33) -> 527.33 | D17: 30211 | E17: 差旅费 | G17: 31011 | H17: 地上附着物和青苗补偿
A18: 30301 | B18: 离休费 | D18: 30212 | E18: 因公出国（境）费用 | G18: 31012 | H18: 拆迁补偿
A19: 30302 | B19: 退休费 | C19: 201.38 | D19: 30213 | E19: 维修(护)费 | F19: 90.00 | G19: 31013 | H19: 公务用车购置
A20: 30303 | B20: 退职（役）费 | D20: 30214 | E20: 租赁费 | G20: 31019 | H20: 其他交通工具购置
A21: 30304 | B21: 抚恤金 | C21: 33.86 | D21: 30215 | E21: 会议费 | G21: 31020 | H21: 产权参股
A22: 30305 | B22: 生活补助 | C22: 2.30 | D22: 30216 | E22: 培训费 | F22: 10.00 | G22: 31099 | H22: 其他资本性支出 | I22: 35.00
A23: 30306 | B23: 救济费 | D23: 30217 | E23: 公务接待费 | G23: 304 | H23: 对企事业单位的补贴
A24: 30307 | B24: 医疗费 | D24: 30218 | E24: 专用材料费 | G24: 30401 | H24: 企业政策性补贴
A25: 30308 | B25: 助学金 | C25: 82.31 | D25: 30224 | E25: 被装购置费 | G25: 30402 | H25: 事业单位补贴
A26: 30309 | B26: 奖励金 | D26: 30225 | E26: 专用燃料费 | G26: 30403 | H26: 财政贴息
A27: 30310 | B27: 生产补贴 | D27: 30226 | E27: 劳务费 | G27: 30499 | H27: 其他对企事业单位的补贴
A28: 30311 | B28: 住房公积金 | C28: 204.48 | D28: 30227 | E28: 委托业务费 | G28: 307 | H28: 债务利息支出
A29: 30312 | B29: 提租补贴 | D29: 30228 | E29: 工会经费 | G29: 30701 | H29: 国内债务付息
A30: 30313 | B30: 购房补贴 | D30: 30229 | E30: 福利费 | G30: 30707 | H30: 国外债务付息
A31: 30314 | B31: 采暖补贴 | D31: 30231 | E31: 公务用车运行维护费 | G31: 399 | H31: 其他支出
A32: 30315 | B32: 物业服务补贴 | D32: 30239 | E32: 其他交通费用 | G32: 39906 | H32: 赠与
A33: 30399 | B33: 其他对个人和家庭的补助支出 | C33: 3.00 | D33: 30299 | E33: 其他商品和服务支出 | F33: 30.00
A34: 人员经费合计 | C34: =C17+C7 -> 2,942.14 | D34: 公用经费合计 | I34: =F7+I7 -> 736.80
A35: 注：本表反映部门本年度一般公共预算财政拨款基本支出明细情况。
D41: =C34+I34 -> 3678.94

Sheet Z07“三公”经费公共预算财政拨款支出决算表
A1: 一般公共预算财政拨款“三公”经费支出决算表
L2: 公开07表
A3: 部门： | B3: 岳阳县第二中学 | L3: 单位：万元
A4: 预算数 | G4: 决算数
A5: 合计 | B5: 因公出国（境）费 | C5: 公务用车购置及运行费 | F5: 公务接待费 | G5: 合计 | H5: 因公出国（境）费 | I5: 公务用车购置及运行费 | L5: 公务接待费
C6: 小计 | D6: 公务用车 购置费 | E6: 公务用车 运行费 | I6: 小计 | J6: 公务用车 购置费 | K6: 公务用车 运行费
A7: 1 | B7: 2 | C7: 3 | D7: 4 | E7: 5 | F7: 6 | G7: 7 | H7: 8 | I7: 9 | J7: 10 | K7: 11 | L7: 12
A8: 3.50 | E8: 3.50 | G8: 3.21 | K8: 3.21
A9: 注：本表反映部门本年度“三公”经费支出预决算情况。其中，预算数为“三公”经费年初预算数，决算数是包括当年一般公共预算财政拨款和以前年度结转资金安排的实际支出。

Sheet g08政府性基金预算财政拨款支出决算表
A1: 政府性基金预算财政拨款收入支出决算表
I2: 公开08表
A3: 部门： | C3: 岳阳县第二中学 | I3: 单位：万元
A4: 项 目 | D4: 年初结转和结余 | E4: 本年收入 | F4: 本年支出 | I4: 年末结转和结余
A5: 功能分类科目编码 | C5: 科目名称 | F5: 小计 | G5: 基本支出 | H5: 项目支出
A8: 栏次 | D8: 1 | E8: 2 | F8: 3 | G8: 4 | H8: 5 | I8: 6
A9: 合计 | G9: =G10 -> 0
A10: 205 | C10: 教育支出 | G10: =G11+G13 -> 0
A11: 20501 | C11: 教育管理事务 | G11: =G12 -> 0
A12: 2050101 | C12: 行政运行
A13: 20502 | C13: 普通教育 | E13: =E14+E15 -> 0 | F13: =F14+F15 -> 0 | G13: =G14+G15 -> 0 | H13: =H14+H15 -> 0
A14: 2050202 | C14: 小学教育
A15: 2050203 | C15: 初中教育
A16: 注：本表反映部门本年度政府性基金预算财政拨款收入、支出及结转和结余情况。

Sheet g09国有资本经营预算财政拨款支出决算表
A1: 国有资本经营预算财政拨款支出决算表
F2: 公开09表
A3: 部门：岳阳县第二中学 | F3: 单位：万元
A4: 项 目 | D4: 本年支出
A5: 功能分类科目编码 | C5: 科目名称 | D5: 合计 | E5: 基本支出 | F5: 项目支出
A8: 栏次 | D8: 1 | E8: 2 | F8: 3
A9: 合计
A16: 注：本表反映部门本年度国有资本经营预算财政拨款支出情况。
A18: 本单位本年无国有资本经营预算财政拨款支出情况。本表为空表
